fUSD/lending_fUSD_20251024
["ID","MTS","AMOUNT","RATE_DAILY","PERIOD"]
[392259228,1761286242554,-723.64,0.00041095,30]
[392259229,1761286242563,-500.0,0.00041095,30]
[392259230,1761286242573,-500.0,0.00041095,30]
[392259231,1761286242582,-500.0,0.00041095,30]
[392259232,1761286242592,-500.0,0.00041095,30]
[392259233,1761286242601,-500.0,0.00041095,30]
[392259234,1761286242611,-500.0,0.00041095,30]
[392259235,1761286242620,-500.0,0.00041095,30]
[392259236,1761286242630,-581.31,0.00041095,30]
[392259237,1761286242640,-1184.4,0.00041095,30]
[392259238,1761286242649,-500.0,0.00041095,30]
[392259239,1761286242659,-193.42322065,0.00041095,30]
[392259240,1761286242668,-511.97779556,0.00041095,30]
[392259241,1761286242678,-500.0,0.00041095,30]
[392259242,1761286242688,-573.89,0.00041095,30]
[392259243,1761286242698,-500.0,0.00041095,30]
[392259244,1761286242707,-552.11451959,0.00041095,30]
[392259245,1761286242717,-500.59520978,0.00041095,30]
[392259246,1761286242727,-588.63,0.00041095,30]
[392259247,1761286242736,-508.55343614,0.00041095,30]
[392259248,1761286242746,-500.0,0.00041095,30]
[392259249,1761286242755,-500.0,0.00041095,30]
[392259251,1761286242765,-500.0,0.00041095,30]
[392259253,1761286242775,-300.0,0.00041095,30]
[392259255,1761286242784,-500.0,0.00041095,30]
[392259257,1761286242793,-503.5392207,0.00041095,30]
[392259258,1761286242802,-500.0,0.00041095,30]
[392259260,1761286242812,-500.0,0.00041095,30]
[392259261,1761286242821,-361.07,0.00041095,30]
[392259262,1761286242830,-500.0,0.00041095,30]
[392259263,1761286242840,-500.0,0.00041095,30]
[392259264,1761286242849,-500.0,0.00041095,30]
[392259265,1761286242859,-500.0,0.00041095,30]
[392259266,1761286242869,-500.0,0.00041095,30]
[392259268,1761286242878,-500.0,0.00041095,30]
[392259269,1761286242887,-500.0,0.00041095,30]
[392259270,1761286242897,-500.0,0.00041095,30]
[392259271,1761286242906,-500.0,0.00041095,30]
[392259272,1761286242915,-500.0,0.00041095,30]
[392259273,1761286242924,-500.0,0.00041095,30]
[392259274,1761286242934,-500.0,0.00041095,30]
[392259276,1761286242943,-501.75880878,0.00041095,30]
[392259278,1761286242952,-500.0,0.00041095,30]
[392259279,1761286242962,-500.0,0.00041095,30]
[392259280,1761286242971,-500.0,0.00041095,30]
[392259281,1761286242981,-500.0,0.00041095,30]
[392259282,1761286242990,-500.0,0.00041095,30]
[392259283,1761286243000,-500.0,0.00041095,30]
[392259284,1761286243009,-152.70474957,0.00041095,30]
[392259285,1761286243019,-500.0,0.00041095,30]
[392259286,1761286243028,-500.0,0.00041095,30]
[392259287,1761286243038,-500.0,0.00041095,30]
[392259288,1761286243047,-717.98,0.00041095,30]
[392259290,1761286243057,-500.0,0.00041095,30]
[392259292,1761286243066,-522.53235018,0.00041095,30]
[392259293,1761286243075,-500.0,0.00041095,30]
[392259294,1761286243085,-500.0,0.00041095,30]
[392259295,1761286243095,-500.0,0.00041095,30]
[392259296,1761286243105,-539.26937307,0.00041095,30]
[392259297,1761286243115,-500.0,0.00041095,30]
[392259298,1761286243125,-500.0,0.00041095,30]
[392259299,1761286243134,-165.90029569,0.00041095,30]
[392259300,1761286243167,-334.09970431,0.00041095,30]
[392259301,1761286243178,-500.0,0.00041095,30]
[392259302,1761286243187,-500.0,0.00041095,30]
[392259303,1761286243197,-500.0,0.00041095,30]
[392259304,1761286243207,-521.40986767,0.00041095,30]
[392259305,1761286243216,-500.0,0.00041095,30]
[392259306,1761286243225,-500.0,0.00041095,30]
[392259307,1761286243235,-61.45230254,0.00041095,30]
[392259308,1761286243259,-640.16769746,0.00041095,30]
[392259309,1761286243268,-500.0,0.00041095,30]
[392259310,1761286243278,-500.0,0.00041095,30]
[392259311,1761286243287,-249.44837579,0.00041095,30]
[392259312,1761286243630,-250.55162421,0.00041095,30]
[392259313,1761286243640,-199.64837583,0.00041095,30]
[392259314,1761286243798,-300.35162417,0.00041095,30]
[392259315,1761286243808,-112.6454122,0.00041095,30]
[392259316,1761286243820,-387.3545878,0.00041095,30]
[392259317,1761286243829,-500.0,0.00041095,30]
[392259318,1761286243839,-356.50997911,0.00041095,30]
[392259319,1761286243852,-143.49002089,0.00041095,30]
[392259320,1761286243862,-412.24813989,0.00041095,30]
[392259321,1761286243877,-87.75186011,0.00041095,30]
[392259322,1761286243892,-578.34,0.00041095,30]
[392259323,1761286243901,-500.0,0.00041095,30]
[392259324,1761286243911,-500.0,0.00041095,30]
[392259325,1761286243920,-500.0,0.00041095,30]
[392259326,1761286243931,-500.0,0.00041095,30]
[392259327,1761286243940,-500.0,0.00041095,30]
[392259328,1761286243950,-500.0,0.00041095,30]
[392259329,1761286243961,-641.36,0.00041095,30]
[392259330,1761286243971,-501.40776632,0.00041095,30]
[392259331,1761286243980,-500.0,0.00041095,30]
[392259332,1761286243989,-500.0,0.00041095,30]
[392259333,1761286243999,-500.0,0.00041095,30]
[392259334,1761286244009,-500.0,0.00041095,30]
[392259335,1761286244018,-500.0,0.00041095,30]
[392259336,1761286244028,-500.0,0.00041095,30]
[392259337,1761286244038,-500.0,0.00041095,30]
[392259338,1761286244048,-500.0,0.00041095,30]
[392259339,1761286244058,-320.61531504,0.00041095,30]
[392259340,1761286244067,-500.0,0.00041095,30]
[392259341,1761286244077,-500.0,0.00041095,30]
[392259342,1761286244086,-500.0,0.00041095,30]
[392259343,1761286244096,-667.67,0.00041095,30]
[392259344,1761286244105,-500.0,0.00041095,30]
[392259345,1761286244115,-500.0,0.00041095,30]
[392259346,1761286244125,-500.0,0.00041095,30]
[392259347,1761286244135,-500.0,0.00041095,30]
[392259348,1761286244145,-500.0,0.00041095,30]
[392259349,1761286244155,-500.0,0.00041095,30]
[392259350,1761286244164,-500.0,0.00041095,30]
[392259351,1761286244174,-500.0,0.00041095,30]
[392259352,1761286244184,-500.0,0.00041095,30]
[392259353,1761286244194,-500.0,0.00041095,30]
[392259354,1761286244203,-500.0,0.00041095,30]
[392259355,1761286244213,-500.0,0.00041095,30]
[392259356,1761286244223,-500.0,0.00041095,30]
[392259357,1761286244233,-500.0,0.00041095,30]
[392259358,1761286244242,-500.0,0.00041095,30]
[392259359,1761286244252,-500.0,0.00041095,30]
[392259360,1761286244262,-500.0,0.00041095,30]
[392259361,1761286244271,-500.0,0.00041095,30]
[392259362,1761286244281,-500.0,0.00041095,30]
[392259363,1761286244290,-500.0,0.00041095,30]
[392259364,1761286244300,-500.0,0.00041095,30]
[392259365,1761286244310,-500.0,0.00041095,30]
[392259366,1761286244319,-500.0,0.00041095,30]
[392259367,1761286244328,-500.0,0.00041095,30]
[392259368,1761286244338,-446.89867776,0.00041095,30]
[392259369,1761286244348,-500.0,0.00041095,30]
[392259370,1761286244357,-772.15,0.00041095,30]
[392259371,1761286244366,-500.0,0.00041095,30]
[392259372,1761286244376,-500.0,0.00041095,30]
[392259373,1761286244385,-500.0,0.00041095,30]
[392259374,1761286244395,-500.0,0.00041095,30]
[392259375,1761286244404,-500.0,0.00041095,30]
[392259376,1761286244414,-500.0,0.00041095,30]
[392259377,1761286244423,-712.61,0.00041095,30]
[392259378,1761286244432,-500.0,0.00041095,30]
[392259379,1761286244442,-500.0,0.00041095,30]
[392259380,1761286244451,-574.04,0.00041095,30]
[392259381,1761286244460,-631.08,0.00041095,30]
[392259382,1761286244470,-668.49,0.00041095,30]
[392259383,1761286244479,-615.83,0.00041095,30]
[392259384,1761286244489,-500.0,0.00041095,30]
[392259385,1761286244498,-500.0,0.00041095,30]
[392259386,1761286244508,-500.0,0.00041095,30]
[392259387,1761286244519,-500.0,0.00041095,30]
[392259388,1761286244530,-500.0,0.00041095,30]
[392259389,1761286244539,-535.92388232,0.00041095,30]
[392259390,1761286244550,-500.0,0.00041095,30]
[392259391,1761286244560,-500.0,0.00041095,30]
[392259392,1761286244570,-500.0,0.00041095,30]
[392259393,1761286244581,-652.96,0.00041095,30]
[392259394,1761286244592,-500.0,0.00041095,30]
[392259395,1761286244603,-500.0,0.00041095,30]
[392259396,1761286244612,-500.0,0.00041095,30]
[392259397,1761286244622,-500.0,0.00041095,30]
[392259398,1761286244631,-500.0,0.00041095,30]
[392259399,1761286244641,-500.0,0.00041095,30]
[392259400,1761286244650,-500.0,0.00041095,30]
[392259401,1761286244660,-500.0,0.00041095,30]
[392259402,1761286244977,-500.0,0.00041095,30]
[392259403,1761286244989,-500.0,0.00041095,30]
[392259404,1761286244999,-500.0,0.00041095,30]
[392259405,1761286245009,-500.0,0.00041095,30]
[392259406,1761286245018,-500.0,0.00041095,30]
[392259407,1761286245028,-500.0,0.00041095,30]
[392259408,1761286245038,-151.0,0.00041095,120]
[392259409,1761286245047,-206.463717,0.00041095,120]
[392259410,1761286245057,-500.0,0.00041095,30]
[392259411,1761286245067,-500.0,0.00041095,30]
[392259412,1761286245076,-500.0,0.00041095,30]
[392259413,1761286245086,-151.0,0.00041095,120]
[392259414,1761286245096,-151.0,0.00041095,120]
[392259415,1761286245105,-151.0,0.00041095,120]
[392259416,1761286245115,-151.0,0.00041095,120]
[392259417,1761286245124,-500.0,0.00041095,30]
[392259418,1761286245134,-151.0,0.00041095,120]
[392259419,1761286245143,-500.0,0.00041095,30]
[392259420,1761286245153,-151.0,0.00041095,120]
[392259421,1761286245162,-500.0,0.00041095,30]
[392259422,1761286245172,-500.0,0.00041095,30]
[392259423,1761286245181,-573.42,0.00041095,30]
[392259424,1761286245191,-500.0,0.00041095,30]
[392259425,1761286245201,-151.0,0.00041095,120]
[392259426,1761286245211,-151.0,0.00041095,120]
[392259427,1761286245220,-500.0,0.00041095,30]
[392259428,1761286245230,-151.0,0.00041095,120]
[392259429,1761286245239,-500.0,0.00041095,30]
[392259430,1761286245249,-151.0,0.00041095,120]
[392259431,1761286245258,-500.0,0.00041095,30]
[392259432,1761286245268,-500.0,0.00041095,30]
[392259433,1761286245277,-151.0,0.00041095,120]
[392259434,1761286245287,-151.0,0.00041095,120]
[392259435,1761286245297,-500.0,0.00041095,30]
[392259436,1761286245306,-229.676112,0.00041095,120]
[392259437,1761286245315,-500.0,0.00041095,30]
[392259438,1761286245325,-559.53,0.00041095,30]
[392259439,1761286245335,-500.0,0.00041095,30]
[392259440,1761286245345,-500.0,0.00041095,30]
[392259441,1761286245354,-1157.3,0.00041095,30]
[392259442,1761286245364,-500.0,0.00041095,30]
[392259443,1761286245373,-412.54557271,0.00041095,30]
[392259444,1761286245383,-500.0,0.00041095,30]
[392259445,1761286245392,-500.0,0.00041095,30]
[392259446,1761286245402,-500.0,0.00041095,30]
[392259447,1761286245411,-500.0,0.00041095,30]
[392259448,1761286245421,-500.0,0.00041095,30]
[392259449,1761286245431,-613.63468396,0.00041095,30]
[392259450,1761286245441,-500.0,0.00041095,30]
[392259451,1761286245451,-500.0,0.00041095,30]
[392259452,1761286245462,-500.0,0.00041095,30]
[392259453,1761286245474,-619.0,0.00041095,30]
[392259454,1761286245485,-500.0,0.00041095,30]
[392259455,1761286245496,-500.0,0.00041095,30]
[392259456,1761286245506,-500.0,0.00041095,30]
[392259457,1761286245515,-500.0,0.00041095,30]
[392259458,1761286245525,-500.0,0.00041095,30]
[392259459,1761286245535,-500.0,0.00041095,30]
[392259460,1761286245544,-500.0,0.00041095,30]
[392259461,1761286245554,-500.0,0.00041095,30]
[392259462,1761286245564,-500.0,0.00041095,30]
[392259463,1761286245574,-500.0,0.00041095,30]
[392259464,1761286245583,-500.0,0.00041095,30]
[392259465,1761286245593,-500.0,0.00041095,30]
[392259466,1761286245602,-500.0,0.00041095,30]
[392259467,1761286245611,-500.0,0.00041095,30]
[392259468,1761286245621,-500.0,0.00041095,30]
[392259469,1761286245630,-500.0,0.00041095,30]
[392259470,1761286245640,-500.0,0.00041095,30]
[392259471,1761286245649,-611.88,0.00041095,30]
[392259472,1761286245658,-500.0,0.00041095,30]
[392259473,1761286245668,-538.6,0.00041095,30]
[392259474,1761286245677,-500.0,0.00041095,30]
[392259475,1761286245687,-500.0,0.00041095,30]
[392259476,1761286245696,-500.0,0.00041095,30]
[392259477,1761286245705,-500.0,0.00041095,30]
[392259478,1761286245715,-563.15264714,0.00041095,30]
[392259479,1761286245726,-500.0,0.00041095,30]
[392259480,1761286245735,-500.0,0.00041095,30]
[392259481,1761286245745,-500.0,0.00041095,30]
[392259482,1761286245754,-500.0,0.00041095,30]
[392259483,1761286245764,-500.0,0.00041095,30]
[392259484,1761286245773,-500.0,0.00041095,30]
[392259485,1761286245783,-635.04,0.00041095,30]
[392259486,1761286245792,-500.0,0.00041095,30]
[392259487,1761286245802,-500.0,0.00041095,30]
[392259488,1761286245811,-500.0,0.00041095,30]
[392259489,1761286245820,-500.0,0.00041095,30]
[392259490,1761286245830,-500.0,0.00041095,30]
[392259491,1761286245839,-589.73066594,0.00041095,30]
[392259492,1761286245848,-500.0,0.00041095,30]
[392259493,1761286245858,-613.2,0.00041095,30]
[392259494,1761286245867,-500.0,0.00041095,30]
[392259495,1761286245877,-500.0,0.00041095,30]
[392259496,1761286245890,-746.91,0.00041095,30]
[392259497,1761286245899,-500.0,0.00041095,30]
[392259498,1761286245908,-500.0,0.00041095,30]
[392259499,1761286245918,-500.0,0.00041095,30]
[392259500,1761286245928,-500.0,0.00041095,30]
[392259501,1761286245938,-500.0,0.00041095,30]
[392259502,1761286245948,-500.0,0.00041095,30]
[392259503,1761286245957,-500.0,0.00041095,30]
[392259504,1761286245969,-500.0,0.00041095,30]
[392259505,1761286245979,-500.0,0.00041095,30]
[392259506,1761286245989,-500.0,0.00041095,30]
[392259507,1761286246000,-500.0,0.00041095,30]
[392259508,1761286246012,-157.1198,0.00041095,120]
[392259509,1761286246021,-500.0,0.00041095,30]
[392259510,1761286246031,-500.0,0.00041095,30]
[392259511,1761286246042,-500.0,0.00041095,30]
[392259512,1761286246052,-500.0,0.00041095,30]
[392259513,1761286246062,-500.0,0.00041095,30]
[392259515,1761286246071,-500.0,0.00041095,30]
[392259517,1761286246081,-500.0,0.00041095,30]
[392259518,1761286246092,-598.0,0.00041095,30]
[392259519,1761286246102,-500.0,0.00041095,30]
[392259520,1761286246111,-447.95545912,0.00041095,30]
[392259521,1761286246120,-500.0,0.00041095,30]
[392259523,1761286246130,-500.0,0.00041095,30]
[392259525,1761286246139,-500.0,0.00041095,30]
[392259527,1761286246148,-500.0,0.00041095,30]
[392259529,1761286246158,-500.0,0.00041095,30]
[392259530,1761286246168,-500.0,0.00041095,30]
[392259531,1761286246179,-500.0,0.00041095,30]
[392259532,1761286246188,-500.0,0.00041095,30]
[392259533,1761286246198,-500.0,0.00041095,30]
[392259534,1761286246208,-500.0,0.00041095,30]
[392259535,1761286246218,-500.0,0.00041095,30]
[392259536,1761286246227,-500.0,0.00041095,30]
[392259537,1761286246236,-500.0,0.00041095,30]
[392259538,1761286246245,-500.0,0.00041095,30]
[392259539,1761286246255,-513.84676875,0.00041095,30]
[392259540,1761286246264,-500.0,0.00041095,30]
[392259541,1761286246274,-686.19,0.00041095,30]
[392259542,1761286246283,-887.37,0.00041095,30]
[392259543,1761286246295,-500.0,0.00041095,30]
[392259544,1761286246304,-500.0,0.00041095,30]
[392259545,1761286246313,-500.0,0.00041095,30]
[392259546,1761286246322,-500.0,0.00041095,30]
[392259547,1761286246331,-500.0,0.00041095,30]
[392259548,1761286246341,-629.25,0.00041095,30]
[392259549,1761286246350,-558.42,0.00041095,30]
[392259550,1761286246359,-500.0,0.00041095,30]
[392259551,1761286246368,-500.0,0.00041095,30]
[392259552,1761286246377,-500.0,0.00041095,30]
[392259553,1761286246386,-153.754719,0.00041095,120]
[392259554,1761286246395,-500.0,0.00041095,30]
[392259555,1761286246405,-500.0,0.00041095,30]
[392259556,1761286246414,-500.0,0.00041095,30]
[392259557,1761286246423,-500.0,0.00041095,30]
[392259558,1761286246432,-421.54375338,0.00041095,30]
[392259559,1761286246441,-630.44,0.00041095,30]
[392259560,1761286246451,-500.0,0.00041095,30]
[392259561,1761286246460,-500.0,0.00041095,30]
[392259562,1761286246469,-514.83,0.00041095,30]
[392259563,1761286246479,-500.0,0.00041095,30]
[392259564,1761286246488,-500.0,0.00041095,30]
[392259565,1761286246497,-500.0,0.00041095,30]
[392259566,1761286246506,-500.0,0.00041095,30]
[392259567,1761286246516,-504.12556854,0.00041095,30]
[392259568,1761286246526,-503.1950255,0.00041095,30]
[392259569,1761286246535,-500.0,0.00041095,30]
[392259570,1761286246544,-500.0,0.00041095,30]
[392259571,1761286246554,-500.0,0.00041095,30]
[392259572,1761286246563,-500.0,0.00041095,30]
[392259573,1761286246573,-500.0,0.00041095,30]
[392259574,1761286246582,-546.52,0.00041095,30]
[392259575,1761286246591,-500.0,0.00041095,30]
[392259576,1761286246601,-797.71,0.00041095,30]
[392259577,1761286246611,-500.0,0.00041095,30]
[392259578,1761286246620,-500.0,0.00041095,30]
[392259579,1761286246629,-151.0,0.00041095,120]
[392259580,1761286246638,-167.814057,0.00041095,120]
[392259581,1761286246647,-591.08558304,0.00041095,30]
[392259582,1761286247597,-121.81441696,0.00041095,30]
[392259583,1761286247606,-500.0,0.00041095,30]
[392259584,1761286247616,-500.0,0.00041095,30]
[392259585,1761286247627,-625.98,0.00041095,30]
[392259586,1761286247637,-500.0,0.00041095,30]
[392259587,1761286247648,-500.0,0.00041095,30]
[392259588,1761286247657,-616.66,0.00041095,30]
[392259589,1761286247667,-500.0,0.00041095,30]
[392259590,1761286247676,-500.0,0.00041095,30]
[392259591,1761286247685,-54.04296502,0.00041095,30]
[392259592,1761286247699,-445.95703498,0.00041095,30]
[392259593,1761286247710,-532.46,0.00041095,30]
[392259594,1761286247721,-500.0,0.00041095,30]
[392259595,1761286247732,-500.0,0.00041095,30]
[392259596,1761286247742,-461.88298502,0.00041095,30]
[392260026,1761286825519,160.0,0.00015,2]
[392260028,1761286873082,130.39182045,0.00015,2]
[392260029,1761286873110,29.60817955,0.00015,2]
[392260030,1761286888075,160.54182045,0.00013699,2]
[392260031,1761286888100,217.51817955,0.00013699,2]
[392260034,1761286905019,59.2388109,0.00015,2]
[392260035,1761286905047,90.7611891,0.00015,2]
[392260040,1761286921365,150.0,0.00015,2]
[392260125,1761286952492,59.2388109,0.00015,2]
[392260126,1761286952519,90.7611891,0.00015,2]
[392260194,1761287022344,150.0,0.00015,2]
[392260238,1761287108730,3732810.96050482,0.00015,2]
[392260239,1761287114961,-275.14205607,0.000154,2]
[392260240,1761287118183,-230.15815529,0.000154,2]
[392260241,1761287119794,10461.99950426,9e-05,2]
[392260242,1761287122202,-234.16,0.000154,2]
[392260243,1761287124584,-306.56461659,0.000154,2]
[392260244,1761287127102,-157.74185746,0.000154,2]
[392260246,1761287135691,7541.00963588,9e-05,2]
[392260247,1761287136745,-259.41936587,0.000154,2]
[392260249,1761287141923,-415.9461806,0.000154,2]
[392260250,1761287161781,-279.24059853,0.000154,2]
[392260251,1761287162200,7911.69828279,8e-05,2]
[392260252,1761287165391,-188.31477724,0.000154,2]
[392260253,1761287168579,-250.0,0.000154,2]
[392260254,1761287173599,-372.663432,0.000154,2]
[392260255,1761287176417,-185.0,0.000154,2]
[392260256,1761287180424,-307.54171257,0.000154,2]
[392260257,1761287182964,-172.74111691,0.000154,2]
[392260258,1761287184935,-200.0,0.000154,2]
[392260259,1761287203398,-232.67431415,0.000154,2]
[392260260,1761287206925,-208.60780155,0.000154,2]
[392260261,1761287208685,-215.86258775,0.000154,2]
[392260262,1761287212466,-192.31392276,0.000154,2]
[392260263,1761287213927,-173.12338281,0.000154,2]
[392260265,1761287234063,-230.16832961,0.000154,2]
[392260266,1761287234362,205.0,9.8e-05,2]
[392260267,1761287237625,-397.31835882,0.000154,2]
[392260268,1761287238352,257.27836582,0.000101,2]
[392260269,1761287239218,-255.68898039,0.000154,2]
[392260270,1761287249175,-303.43349556,0.000154,2]
[392260272,1761287252454,-383.92201062,0.000154,2]
[392260273,1761287261603,-285.0294252,0.000154,2]
[392260277,1761287274737,148731.69646726,0.00015,2]
[392260278,1761287276268,-325.44837262,0.000154,2]
[392260282,1761287294015,-213.44839364,0.000154,2]
[392260283,1761287295616,-157.73370258,0.000154,2]
[392260288,1761287300555,-167.1132101,0.000154,2]
[392260290,1761287303807,-289.93892022,0.000154,2]
[392260300,1761287315371,5014.92,0.00014999,2]
[392260302,1761287318186,-169.05026414,0.000154,2]
[392260305,1761287320840,21695.31012539,0.00015,2]
[392260306,1761287338496,-289.73762311,0.000154,2]
[392260307,1761287340647,-269.55842526,0.000154,2]
[392260309,1761287344370,-400.0,0.000154,2]
[392260310,1761287346961,-213.33896432,0.000154,2]
[392260311,1761287349856,-482.86536425,0.000154,2]
[392260312,1761287354387,-287.34569715,0.000154,2]
[392260313,1761287360500,-398.99781804,0.000154,2]
[392260314,1761287364431,-304.43393434,0.000154,2]
[392260317,1761287367726,-162.59888418,0.000154,2]
[392260318,1761287374318,-210.06728508,0.000154,2]
[392260319,1761287376229,-381.85682449,0.000154,2]
[392260320,1761287376250,-161.72592509,0.0001634,2]
[392260322,1761287381218,-38.27407491,0.0001634,2]
[392260323,1761287381239,-206.04833008,0.00016405,2]
[392260325,1761287398428,-43.95166992,0.00016405,2]
[392260326,1761287398449,-256.95171941,0.000166,2]
[392260328,1761287404299,-99.030563,0.000166,2]
[392260329,1761287404321,-200.969437,0.0001694,2]
[392260330,1761287405815,-49.030563,0.0001694,2]
[392260331,1761287405837,-155.34069487,0.00017,2]
[392260334,1761287412574,-183.95421483,0.00017,2]
[392260335,1761287415324,-300.0,0.00017,2]
[392260336,1761287417135,-283.53345959,0.00017,2]
[392260337,1761287420074,-162.91502464,0.00017,2]
[392260338,1761287423116,-311.57892345,0.00017,2]
[392260339,1761287427391,-168.66,0.00017,2]
[392260363,1761287431616,-16.72365318,0.00017,2]
[392260364,1761287431628,-250.0,0.00017062,2]
[392260365,1761287431639,-182.79582451,0.00017498,2]
[392260366,1761287431779,-317.20417549,0.00017498,2]
[392260367,1761287431792,-500.0,0.00017498,2]
[392260368,1761287431803,-500.0,0.00017498,2]
[392260369,1761287431814,-500.0,0.00017498,2]
[392260370,1761287431824,-500.0,0.00017498,2]
[392260371,1761287431835,-500.0,0.00017498,2]
[392260372,1761287431844,-500.0,0.00017498,2]
[392260373,1761287431854,-500.0,0.00017498,2]
[392260374,1761287431864,-500.0,0.00017498,2]
[392260375,1761287431874,-500.0,0.00017498,2]
[392260376,1761287431883,-500.0,0.00017498,2]
[392260377,1761287431893,-227.29582451,0.00017498,2]
[392260378,1761287431909,-272.70417549,0.00017498,2]
[392260379,1761287431919,-500.0,0.00017498,2]
[392260380,1761287431929,-500.0,0.00017498,2]
[392260381,1761287431938,-500.0,0.00017498,2]
[392260382,1761287431948,-500.0,0.00017498,2]
[392260383,1761287431964,-500.0,0.00017498,2]
[392260385,1761287431974,-500.0,0.00017498,2]
[392260386,1761287431983,-160.92518795,0.00017498,2]
[392260387,1761287431992,-500.0,0.00017498,2]
[392260388,1761287432002,-500.0,0.00017498,2]
[392260389,1761287432012,-500.0,0.00017498,2]
[392260390,1761287432488,-500.0,0.00017498,2]
[392260391,1761287432519,-162.59888418,0.00017498,2]
[392260392,1761287432540,-500.0,0.00017498,2]
[392260393,1761287432555,-287.90515457,0.00017498,2]
[392260394,1761287432565,-500.0,0.00017498,2]
[392260395,1761287432575,-189.22886203,0.00017498,2]
[392260396,1761287432584,-500.0,0.00017499,2]
[392260397,1761287432593,-336.18070227,0.00017499,2]
[392260398,1761287432603,-200.4801784,0.00017499,2]
[392260399,1761287432612,-201.34618427,0.00017499,2]
[392260400,1761287432622,-16719.80720611,0.000175,2]
[392260401,1761287432829,-216.46654041,0.00016915,2]
[392260404,1761287436659,-223.07563827,0.00016915,2]
[392260412,1761287438435,-287.53936232,0.00016915,2]
[392260413,1761287438467,-53.5590511,0.00017498,2]
[392260416,1761287439689,-392.88943313,0.00017498,2]
[392260417,1761287439700,-2958.60010857,0.000175,2]
[392260418,1761287439710,-2579.91548599,0.00018,2]
[392260419,1761287439723,-2454.80150302,0.00018,2]
[392260420,1761287439734,-1260.3147033,0.00018,2]
[392260422,1761287440666,-27985.60410351,0.00018,2]
[392260423,1761287440677,-250.0,0.0001826,2]
[392260424,1761287440687,-463.14642923,0.00019,2]
[392260425,1761287440697,-172.61,0.00019506,2]
[392260426,1761287440707,-3476.18256857,0.0002,2]
[392260427,1761287440717,-378.06,0.00020187,2]
[392260428,1761287440726,-172.61,0.00024383,2]
[392260429,1761287440737,-378.06,0.00026676,2]
[392260430,1761287440746,-4323.06449316,0.0002739,7]
[392260431,1761287440756,-4954.05926989,0.00028,2]
[392260432,1761287440766,-48924.32392511,0.00028,2]
[392260433,1761287440776,-160.0,0.00028,2]
[392260434,1761287440786,-13097.49921008,0.0002875,2]
[392260435,1761287440796,-6133.57406421,0.0002876,2]
[392260436,1761287440805,-2528.83713214,0.00029159,2]
[392260437,1761287440815,-172.61,0.00029259,2]
[392260438,1761287440825,-193805.37893428,0.000295,2]
[392260439,1761287440835,-10960.878,0.0003,5]
[392260440,1761287440845,-2528.83713209,0.00030596,2]
[392260441,1761287440855,-2528.83713209,0.00032033,2]
[392260442,1761287440865,-378.06,0.00033165,2]
[392260443,1761287440876,-2528.83713209,0.0003347,2]
[392260444,1761287440886,-172.61,0.00034136,2]